bitfinex/quotes_BTCUSD_20230114
["timestamp","ask_amount","ask_price","bid_price","bid_amount"]
[1673690727556,0.064,20484.0,20483.0,0.15582655]
[1673690727807,0.12469378,20486.0,20483.0,0.16432655]
[1673690728075,0.064,20484.0,20483.0,0.3550525]
[1673690728316,0.064,20484.0,20483.0,0.16432655]
[1673690728564,0.064,20484.0,20483.0,0.65253555]
[1673690728810,0.12469378,20486.0,20483.0,0.65253555]
[1673690729051,0.059,20486.0,20484.0,0.0085]
[1673690729320,0.059,20486.0,20485.0,0.488162]
[1673690729564,0.059,20486.0,20485.0,0.496662]
[1673690729820,0.059,20486.0,20485.0,0.65636459]
[1673690730326,0.059,20486.0,20485.0,0.65323693]
[1673690730818,0.00874335,20487.0,20485.0,0.65323693]
[1673690731071,0.1278627,20487.0,20486.0,0.0085]
[1673690731322,0.1278627,20487.0,20486.0,0.05447]
[1673690732057,0.1278627,20487.0,20486.0,0.0085]
[1673690732328,0.1868627,20487.0,20486.0,0.0195]
[1673690732569,0.1868627,20487.0,20486.0,0.011]
[1673690733047,0.2552308,20487.0,20486.0,0.011]
[1673690733288,0.56143029,20487.0,20486.0,0.011]
[1673690733532,0.49306219,20487.0,20486.0,0.011]
[1673690733773,0.17025119,20487.0,20486.0,0.011]
[1673690734016,0.87866835,20487.0,20486.0,0.011]
[1673690734223,1.17866835,20487.0,20486.0,0.011]
[1673690734511,0.0014922,20485.0,20482.0,0.00019]
[1673690734772,0.0014922,20485.0,20482.0,0.18696606]
[1673690735023,0.0014922,20485.0,20484.0,0.16814803]
[1673690735258,0.0014922,20485.0,20482.0,0.00019]
[1673690735513,0.0014922,20485.0,20483.0,0.17916012]
[1673690735754,0.0014922,20485.0,20483.0,0.27916012]
[1673690735999,0.0014922,20485.0,20484.0,0.0085]
[1673690736785,0.0704922,20485.0,20484.0,0.596685]
[1673690737037,0.0014922,20485.0,20484.0,1.70771264]
[1673690737275,0.00844006,20491.0,20485.0,0.1]
[1673690737522,0.00844006,20491.0,20487.0,0.1431]
[1673690737523,0.14321954,20491.0,20487.0,0.1431]
[1673690737764,0.14321954,20491.0,20488.0,0.29072595]
[1673690737765,0.00844006,20491.0,20488.0,0.29072595]
[1673690738020,0.00844006,20491.0,20488.0,0.0085]
[1673690738269,0.49646706,20491.0,20486.0,0.0085]
[1673690738516,0.10369478,20490.0,20486.0,0.37469678]
[1673690738775,0.10369478,20490.0,20486.0,0.67210783]
[1673690739026,0.10369478,20490.0,20488.0,0.19195543]
[1673690739771,0.00844006,20491.0,20488.0,0.108]
[1673690740014,0.81086,20490.0,20485.0,0.04927749]
[1673690740256,0.221327,20489.0,20488.0,0.108]
[1673690740506,0.689393,20489.0,20485.0,0.04927749]
[1673690740740,0.322811,20488.0,20485.0,0.1938998]
[1673690741007,0.61711082,20489.0,20485.0,0.14594835]
[1673690741252,0.012,20490.0,20488.0,0.19575039]
[1673690741503,0.012,20490.0,20489.0,0.028395]
[1673690741770,0.012,20490.0,20489.0,0.07436]
[1673690742013,0.012,20490.0,20489.0,0.05447]
[1673690742263,0.13229391,20491.0,20489.0,0.24519595]
[1673690742535,0.00844006,20491.0,20490.0,0.51061395]
[1673690742786,0.00844006,20491.0,20490.0,0.51643]
[1673690743296,0.00844006,20491.0,20490.0,0.69694078]
[1673690743553,0.00944006,20491.0,20490.0,0.69694078]
[1673690743794,0.00944006,20491.0,20490.0,0.68273549]
[1673690744295,0.00844006,20491.0,20490.0,0.6670755]
[1673690744538,0.00844006,20491.0,20490.0,0.51643]
[1673690744813,0.00844006,20494.0,20491.0,0.1]
[1673690745059,0.00844006,20494.0,20492.0,1.66321095]
[1673690745314,0.00844006,20494.0,20493.0,0.319876]
[1673690745560,0.00844006,20494.0,20493.0,0.6892975]
[1673690745801,0.00844006,20494.0,20493.0,0.916347]
[1673690746045,0.00844006,20494.0,20493.0,0.66210507]
[1673690746298,0.00844006,20494.0,20493.0,0.516347]
[1673690746545,0.00844006,20494.0,20493.0,0.67377617]
[1673690746790,0.02044006,20494.0,20493.0,0.97377617]
[1673690747034,0.02044006,20494.0,20493.0,1.29354869]
[1673690747275,0.02044006,20494.0,20493.0,1.33254869]
[1673690747526,0.02044006,20494.0,20493.0,1.43254869]
[1673690747766,0.02044006,20494.0,20493.0,0.067376]
[1673690747767,0.1198585,20494.0,20493.0,0.067376]
[1673690748024,0.1078585,20494.0,20493.0,0.0085]
[1673690748268,0.1088585,20494.0,20493.0,0.1475]
[1673690748541,0.1078585,20494.0,20492.0,0.0085]
[1673690748796,0.49639406,20494.0,20493.0,0.039]
[1673690749046,0.1428,20493.0,20489.0,0.04888977]
[1673690749285,0.1428,20493.0,20489.0,0.04907977]
[1673690749286,0.1429,20490.0,20489.0,0.04907977]
[1673690749532,0.1429,20490.0,20489.0,0.00019]
[1673690749533,0.689392,20490.0,20489.0,0.00019]
[1673690749777,0.20135,20490.0,20489.0,0.00019]
[1673690750271,0.50135,20490.0,20489.0,0.00019]
[1673690750516,0.30135,20490.0,20489.0,0.00019]
[1673690751013,0.30135,20490.0,20489.0,0.01119]
[1673690751267,0.60135,20490.0,20489.0,0.00019]
[1673690751516,0.60135,20490.0,20489.0,0.011]
[1673690751517,0.21235,20490.0,20489.0,0.011]
[1673690751794,0.800392,20490.0,20489.0,0.011]
[1673690752054,1.302294,20490.0,20489.0,0.011]
[1673690752309,1.444994,20490.0,20484.0,0.04793432]
[1673690752555,0.1426,20488.0,20484.0,0.04793432]
[1673690752810,0.011,20490.0,20485.0,0.66792764]
[1673690753071,0.011,20490.0,20488.0,0.14581545]
[1673690753326,0.10784337,20490.0,20486.0,0.488126]
[1673690753570,0.10784337,20490.0,20487.0,0.16412327]
[1673690753816,0.09684337,20490.0,20487.0,0.16412327]
[1673690754054,0.11784337,20490.0,20488.0,0.0085]
[1673690754296,0.11403254,20491.0,20488.0,0.0085]
[1673690754548,0.021,20490.0,20488.0,0.0085]
[1673690754795,0.11403254,20491.0,20488.0,0.0085]
[1673690755040,0.11403254,20491.0,20488.0,0.0415]
[1673690755816,0.11403254,20491.0,20488.0,0.0085]
[1673690755817,0.17423349,20491.0,20488.0,0.0085]
[1673690756063,0.11403254,20491.0,20488.0,0.0085]
[1673690756313,0.10584344,20490.0,20488.0,0.20061717]
[1673690757087,0.10584344,20490.0,20488.0,0.0085]
[1673690757344,0.10584344,20490.0,20486.0,0.18842217]
[1673690757595,0.12684344,20490.0,20488.0,0.006]
[1673690757846,0.12684344,20490.0,20487.0,0.17070553]
[1673690757847,0.10584344,20490.0,20487.0,0.17070553]
[1673690758093,0.12684344,20490.0,20488.0,0.18020575]
[1673690758362,0.487976,20493.0,20489.0,0.19338028]
[1673690758363,0.60369172,20493.0,20489.0,0.19338028]
[1673690758597,0.021,20490.0,20489.0,0.18198728]
[1673690759109,0.042,20490.0,20489.0,0.22008529]
[1673690759855,0.09974516,20492.0,20489.0,0.22008529]
[1673690760102,0.09974516,20492.0,20489.0,0.21120029]
[1673690760351,0.09974516,20492.0,20489.0,0.15423029]
[1673690760597,0.021,20490.0,20489.0,0.16523029]
[1673690760846,0.021,20490.0,20489.0,0.0085]
[1673690761084,0.021,20490.0,20489.0,0.011]
[1673690761085,0.46913101,20490.0,20489.0,0.011]
[1673690761835,0.24570503,20493.0,20489.0,0.19304115]
[1673690761836,0.62321707,20493.0,20489.0,0.19304115]
[1673690762093,0.00844006,20494.0,20490.0,0.19922595]
[1673690762354,0.00844006,20494.0,20491.0,0.21061195]
[1673690762599,0.00844006,20494.0,20492.0,0.21910495]
[1673690762844,0.00844006,20494.0,20492.0,0.68721395]
[1673690763104,0.00844006,20494.0,20492.0,0.496488]
[1673690763353,0.02744006,20494.0,20492.0,0.496488]
[1673690763600,0.00844006,20494.0,20493.0,0.19438551]
[1673690763848,0.02844006,20494.0,20493.0,0.22276051]
[1673690764127,0.00844006,20494.0,20493.0,0.71073151]
[1673690764398,0.02944006,20494.0,20493.0,0.71073151]
[1673690764641,0.00844006,20494.0,20493.0,0.71073151]
[1673690764888,0.00844006,20494.0,20493.0,0.526346]
[1673690764889,0.02744006,20494.0,20493.0,0.526346]
[1673690765134,0.01904006,20494.0,20493.0,1.10354769]
[1673690765390,0.00806143,20495.0,20493.0,1.10354769]
[1673690765391,0.00806143,20495.0,20494.0,0.1]
[1673690765644,0.00806143,20495.0,20494.0,1.86159569]
[1673690765916,8.213e-05,20496.0,20495.0,0.1]
[1673690766153,0.00951379,20498.0,20495.0,1.51384875]
[1673690766400,0.00951379,20498.0,20497.0,0.1]
[1673690766644,0.00951379,20498.0,20497.0,1.583488]
[1673690766882,0.00951379,20498.0,20497.0,1.891988]
[1673690767143,0.00951379,20498.0,20497.0,1.004112]
[1673690767384,0.00951379,20498.0,20497.0,0.516236]
[1673690768607,0.00951379,20498.0,20497.0,0.657236]
[1673690768847,0.00951379,20498.0,20497.0,0.67556619]
[1673690769092,0.01051379,20498.0,20497.0,0.67956619]
[1673690769346,0.01051379,20498.0,20497.0,0.18319019]
[1673690769844,0.01051379,20498.0,20497.0,0.67106619]
[1673690770347,0.01051379,20498.0,20497.0,1.28893769]
[1673690770587,1.379e-05,20498.0,20497.0,1.47966364]
[1673690770827,1.0001,20500.0,20497.0,1.29743769]
[1673690771079,1.0001,20500.0,20498.0,0.58570169]
[1673690771343,1.0001,20500.0,20499.0,1.96053869]
[1673690771612,1.0001,20500.0,20499.0,1.96903869]
[1673690771869,1.0001,20500.0,20499.0,2.26903869]
[1673690772635,0.35629869,20500.0,20499.0,2.41003869]
[1673690772880,0.00951379,20501.0,20500.0,0.92909]
[1673690773132,0.00951379,20501.0,20500.0,1.11044454]
[1673690773375,0.00951379,20501.0,20500.0,1.12179054]
[1673690774621,0.00951379,20501.0,20500.0,1.13007282]
[1673690775118,0.00951379,20501.0,20500.0,1.06887228]
[1673690775373,0.12292012,20501.0,20500.0,1.06887228]
[1673690775614,0.12292012,20501.0,20500.0,0.92887228]
[1673690776117,0.12292012,20501.0,20500.0,1.04387228]
[1673690776118,0.44571112,20501.0,20500.0,1.04387228]
[1673690776351,0.44571112,20501.0,20500.0,0.92887228]
[1673690776611,0.33230479,20501.0,20500.0,0.92887228]
[1673690776852,0.00451379,20501.0,20500.0,0.92887228]
[1673690777106,0.00451379,20501.0,20500.0,0.93737228]
[1673690777352,0.32730479,20501.0,20500.0,0.97937228]
[1673690777597,0.00451379,20501.0,20500.0,0.93737228]
[1673690777849,0.00551379,20501.0,20500.0,1.42917628]
[1673690778090,0.00451379,20501.0,20500.0,1.09963886]
[1673690778337,0.00551379,20501.0,20500.0,1.11063886]
[1673690778586,0.00451379,20501.0,20500.0,1.09963886]
[1673690779071,0.00551379,20501.0,20500.0,1.09963886]
[1673690779326,0.00451379,20501.0,20500.0,1.11948486]
[1673690779541,0.00551379,20501.0,20500.0,1.10963886]
[1673690780081,0.00551379,20501.0,20500.0,1.10113886]
[1673690780591,0.00451379,20501.0,20500.0,1.09113886]
[1673690780843,0.00551379,20501.0,20500.0,1.09113886]
[1673690781094,0.00551379,20501.0,20500.0,0.92887228]
[1673690781095,0.49229479,20501.0,20500.0,0.92887228]
[1673690781335,0.49229479,20501.0,20500.0,0.93287228]
[1673690781336,1.11608579,20501.0,20500.0,0.93287228]
[1673690781790,1.25898579,20501.0,20500.0,0.93287228]
[1673690782067,1.54021137,20501.0,20500.0,0.92887228]
[1673690782306,1.64121137,20501.0,20500.0,0.93987228]
[1673690782550,1.35898579,20501.0,20500.0,0.93987228]
[1673690782795,1.35898579,20501.0,20500.0,0.45077228]
[1673690782796,1.38193579,20501.0,20500.0,0.45077228]
[1673690783089,1.35898579,20501.0,20500.0,0.45077228]
[1673690783596,1.35898579,20501.0,20500.0,0.43977228]
[1673690783597,1.35798579,20501.0,20500.0,0.43977228]
[1673690783832,1.39298579,20501.0,20500.0,0.43977228]
[1673690784072,0.95798579,20501.0,20500.0,0.43977228]
[1673690784314,1.39398579,20501.0,20500.0,0.43977228]
[1673690784831,1.49398579,20501.0,20500.0,0.43977228]
[1673690785076,1.49398579,20501.0,20495.0,0.05632864]
[1673690785077,0.1,20500.0,20495.0,0.05632864]
[1673690785325,0.1437,20496.0,20495.0,0.05632864]
[1673690785574,1.442291,20496.0,20495.0,0.05632864]
[1673690785817,1.598591,20496.0,20495.0,0.00730738]
[1673690786068,1.698591,20496.0,20495.0,0.00730738]
[1673690786314,1.99944233,20496.0,20495.0,0.00730738]
[1673690786563,2.14314233,20496.0,20495.0,0.00730738]
[1673690786853,2.27014233,20496.0,20495.0,0.01230738]
[1673690787366,3.01957988,20496.0,20495.0,0.01730738]
[1673690787606,0.1,20495.0,20493.0,0.00997331]
[1673690787901,1.830641,20494.0,20493.0,0.00997331]
[1673690788183,2.82569648,20494.0,20493.0,7.331e-05]
[1673690788437,0.00997,20493.0,20491.0,0.00019]
[1673690788680,2.44683819,20492.0,20491.0,0.00019]
[1673690788940,2.44683819,20492.0,20488.0,0.00997331]
[1673690788941,3.74364798,20492.0,20488.0,0.00997331]
[1673690789232,0.1437,20489.0,20488.0,0.00997331]
[1673690789436,1.930689,20489.0,20488.0,0.00997331]
[1673690789709,2.230689,20489.0,20488.0,0.00997331]
[1673690789967,2.70789069,20489.0,20488.0,0.00997331]
[1673690790215,0.10997,20488.0,20481.0,0.0490806]
[1673690790484,0.1437,20484.0,20481.0,0.0490806]
[1673690790729,0.1437,20484.0,20477.0,0.012892]
[1673690790730,1.787418,20483.0,20480.0,0.18035458]
[1673690790962,1.787418,20483.0,20481.0,0.00019]
[1673690791223,2.187418,20483.0,20481.0,0.00019]
[1673690791465,2.210368,20483.0,20481.0,0.00019]
[1673690791724,2.3063626,20483.0,20481.0,0.01157446]
[1673690791975,1.887418,20483.0,20481.0,0.01157446]
[1673690792254,1.787418,20483.0,20481.0,0.01157446]
[1673690792739,1.787418,20483.0,20481.0,0.01138446]
[1673690792992,2.0269751,20483.0,20481.0,0.01138446]
[1673690793237,2.223418,20483.0,20481.0,0.01138446]
[1673690793490,2.6063476,20483.0,20481.0,0.01138446]
[1673690793739,2.6063476,20483.0,20478.0,0.04902645]
[1673690793740,2.94754929,20483.0,20478.0,0.04902645]
[1673690793994,0.1426,20479.0,20478.0,0.04902645]
[1673690794241,0.1426,20479.0,20477.0,0.012892]
[1673690794242,1.930306,20479.0,20477.0,0.012892]
[1673690794496,0.50135,20478.0,20477.0,0.012892]
[1673690794743,0.989678,20478.0,20477.0,0.012892]
[1673690794988,1.089678,20478.0,20477.0,0.012892]
[1673690795489,0.789678,20478.0,20477.0,0.012892]
[1673690795738,0.80313433,20478.0,20477.0,0.012892]
[1673690795978,1.33813433,20478.0,20477.0,0.012892]
[1673690796225,1.20313433,20478.0,20477.0,0.012892]
[1673690796468,1.33913433,20478.0,20477.0,0.012892]
[1673690796966,1.63146293,20478.0,20477.0,0.012892]
[1673690797210,1.97266462,20478.0,20477.0,0.012892]
[1673690797704,2.10866462,20478.0,20477.0,0.012892]
[1673690798204,2.10866462,20478.0,20475.0,0.01138446]
[1673690798205,0.00425257,20476.0,20475.0,0.01138446]
[1673690798468,0.70138529,20476.0,20475.0,0.01138446]
[1673690798734,2.94371498,20476.0,20475.0,0.01138446]
[1673690798988,0.01442977,20474.0,20469.0,0.04962238]
[1673690799227,0.01442977,20474.0,20470.0,0.19500639]
[1673690799228,0.1429,20472.0,20470.0,0.19500639]
[1673690799488,0.1429,20472.0,20469.0,0.04962238]
[1673690799489,0.488482,20472.0,20471.0,0.16852065]
[1673690799737,0.488482,20472.0,20469.0,0.04962238]
[1673690799738,1.211273,20472.0,20470.0,0.0126419]
[1673690799997,0.30135,20471.0,20470.0,0.18983245]
[1673690800238,0.689845,20471.0,20470.0,0.16860331]
[1673690800523,0.689845,20471.0,20470.0,0.0126419]
[1673690801031,0.61218435,20472.0,20470.0,0.22240865]
[1673690801290,0.60185604,20473.0,20470.0,0.22240865]
[1673690801536,0.60185604,20473.0,20470.0,0.4131346]
[1673690801778,0.48846,20473.0,20470.0,0.22240865]
[1673690802535,0.48846,20473.0,20471.0,0.19072595]
[1673690802784,0.136,20473.0,20472.0,0.05447]
[1673690803028,0.136,20473.0,20472.0,0.07443]
[1673690803277,0.136,20473.0,20472.0,0.21949754]
[1673690803533,0.136,20473.0,20472.0,0.074425]
[1673690803786,0.136,20473.0,20472.0,0.26680974]
[1673690804347,0.136,20473.0,20470.0,0.0126419]
[1673690804588,0.136,20473.0,20471.0,0.15953877]
[1673690804589,0.59601525,20473.0,20471.0,0.15953877]
[1673690804841,0.59601525,20473.0,20472.0,0.19072595]
[1673690804842,0.136,20473.0,20472.0,0.19072595]
[1673690805101,0.01442977,20474.0,20473.0,0.1]
[1673690805348,0.01442977,20474.0,20473.0,0.596948]
[1673690805609,0.01442977,20474.0,20473.0,0.616899]
[1673690806377,0.01642977,20474.0,20473.0,0.644899]
[1673690807113,0.01642977,20474.0,20473.0,0.34619399]
[1673690807614,0.01642977,20474.0,20473.0,0.33769399]
[1673690808118,0.13655245,20474.0,20473.0,0.128]
[1673690809710,0.01642977,20474.0,20473.0,0.31872595]
[1673690809944,0.01642977,20474.0,20473.0,0.81567395]
[1673690810203,0.01642977,20474.0,20473.0,0.944899]
[1673690810469,0.01642977,20474.0,20473.0,1.044899]
[1673690811452,0.01642977,20474.0,20473.0,0.744899]
[1673690812446,0.01642977,20474.0,20473.0,1.044899]
[1673690813730,0.01642977,20474.0,20473.0,1.969599]
[1673690813964,0.01642977,20474.0,20473.0,2.44680069]
[1673690814233,0.01642977,20474.0,20473.0,2.48294107]
[1673690814486,0.00840435,20481.0,20474.0,0.01642]
[1673690814740,0.00840435,20481.0,20477.0,0.1434]
[1673690815000,0.00840435,20481.0,20478.0,0.21065995]
[1673690815245,0.00840435,20481.0,20479.0,0.49072595]
[1673690815501,0.00840435,20481.0,20480.0,0.516708]
[1673690815746,0.00840435,20481.0,20480.0,0.019927]
[1673690815997,0.00840435,20481.0,20477.0,0.488337]
[1673690815998,0.00840435,20481.0,20477.0,0.14]
[1673690816244,0.1203012,20480.0,20478.0,0.19607097]
[1673690816503,0.1203012,20480.0,20479.0,0.127926]
[1673690816755,0.00840435,20481.0,20479.0,0.128426]
[1673690816995,0.00840435,20481.0,20479.0,0.588305]
[1673690817247,0.00840435,20481.0,20480.0,0.028425]
[1673690817503,0.00840435,20481.0,20480.0,0.560706]
[1673690817748,0.00840435,20481.0,20480.0,0.616706]
[1673690818006,0.00940435,20481.0,20480.0,0.616706]
[1673690818249,0.00840435,20481.0,20480.0,0.916706]
[1673690818528,0.00840435,20481.0,20480.0,0.960706]
[1673690818771,0.00840435,20481.0,20480.0,0.516706]
[1673690819016,0.00840435,20481.0,20480.0,0.167425]
[1673690819017,0.00940435,20481.0,20480.0,0.167425]
[1673690819267,0.12775941,20481.0,20479.0,0.16587931]
[1673690819527,0.61601641,20481.0,20480.0,0.044]
[1673690819772,1.32987289,20481.0,20480.0,0.044]
[1673690820267,1.32987289,20481.0,20476.0,0.00019]
[1673690820518,0.20135,20480.0,20476.0,0.00019]
[1673690820775,1.399409,20479.0,20476.0,0.00019]
[1673690821024,0.20135,20478.0,20475.0,0.24672043]
[1673690821268,0.322791,20477.0,20475.0,0.0483228]
[1673690821530,0.20135,20476.0,20475.0,0.0483228]
[1673690821773,1.089393,20476.0,20470.0,0.18218495]
[1673690822017,1.089393,20476.0,20471.0,0.19460754]
[1673690822018,0.322791,20475.0,20471.0,0.19460754]
[1673690822268,0.322791,20475.0,20472.0,0.19283616]
[1673690822269,0.201015,20474.0,20472.0,0.19283616]
[1673690822512,0.322802,20473.0,20472.0,0.19283616]
[1673690822761,0.488412,20475.0,20470.0,0.0617653]
[1673690823017,0.488412,20475.0,20471.0,0.16013469]
[1673690823269,0.3,20474.0,20470.0,0.0617653]
[1673690823510,0.322802,20473.0,20470.0,0.23628014]
[1673690823768,0.201004,20472.0,20470.0,0.23628014]
[1673690824021,0.322802,20471.0,20470.0,0.2017653]
[1673690824263,0.1219861,20472.0,20470.0,0.2926419]
[1673690824521,0.10434851,20471.0,20470.0,0.0126419]
[1673690825015,0.10434851,20471.0,20470.0,0.0211419]
[1673690825263,0.42715051,20471.0,20470.0,0.0126419]
[1673690826294,0.42715051,20471.0,20470.0,0.0566419]
[1673690826547,0.10434851,20471.0,20470.0,0.0126419]
[1673690827062,0.52715051,20471.0,20470.0,0.0126419]
[1673690827322,1.225297,20471.0,20470.0,0.0126419]
[1673690827585,1.04388406,20471.0,20470.0,0.0126419]
[1673690827864,1.02988406,20471.0,20470.0,0.0126419]
[1673690828110,1.32988406,20471.0,20470.0,0.0126419]
[1673690828358,1.34388406,20471.0,20470.0,0.0176419]
[1673690828604,1.52059851,20471.0,20470.0,0.0176419]
[1673690828854,1.52059851,20471.0,20470.0,0.0126419]
[1673690829098,1.50659851,20471.0,20470.0,0.0126419]
[1673690829597,1.50659851,20471.0,20470.0,0.0226419]
[1673690829598,1.52059851,20471.0,20470.0,0.0226419]
[1673690830100,1.50659851,20471.0,20470.0,0.0236419]
[1673690830370,1.93745566,20471.0,20470.0,0.0236419]
[1673690830629,1.52059851,20471.0,20470.0,0.0126419]
[1673690830881,1.93752994,20471.0,20470.0,0.0236419]
[1673690831128,2.42918144,20471.0,20470.0,4.19e-05]
[1673690831380,6e-05,20469.0,20463.0,0.06239562]
[1673690831641,0.1425,20467.0,20463.0,0.0126419]
[1673690831894,2.2057423,20466.0,20463.0,0.0126419]
[1673690832147,0.02295,20464.0,20463.0,0.0126419]
[1673690832397,1.300128,20464.0,20463.0,0.0126419]
[1673690832642,1.400128,20464.0,20463.0,0.0126419]
[1673690833410,1.300128,20464.0,20463.0,0.0126419]
[1673690833666,0.811465,20464.0,20463.0,0.0126419]
[1673690833931,1.593775,20468.0,20464.0,0.16959741]
[1673690834178,1.593775,20468.0,20465.0,0.19072595]
[1673690834179,0.488606,20467.0,20465.0,0.19072595]
[1673690834421,0.488606,20467.0,20463.0,0.16816844]
[1673690834422,0.0002,20466.0,20463.0,0.16816844]
[1673690834670,0.014,20464.0,20463.0,0.0226419]
[1673690834921,0.215004,20464.0,20463.0,0.0226419]
[1673690835181,0.014,20464.0,20463.0,0.71055385]
[1673690835426,0.0002,20466.0,20464.0,0.2091343]
[1673690835686,0.0002,20466.0,20465.0,1.7163347]
[1673690835939,0.0002,20466.0,20465.0,2.05153536]
[1673690836192,6e-05,20469.0,20465.0,2.05153536]
[1673690836193,6e-05,20469.0,20465.0,0.517454]
[1673690836460,6e-05,20469.0,20465.0,0.68786495]
[1673690836461,0.10178078,20467.0,20465.0,0.68786495]
[1673690836704,0.10178078,20467.0,20465.0,0.0085]
[1673690837209,0.10178078,20467.0,20465.0,0.1475]
[1673690838220,0.10178078,20467.0,20465.0,0.0085]
[1673690838717,0.10178078,20467.0,20465.0,0.1485]
[1673690839464,0.10178078,20467.0,20465.0,0.14]
[1673690839711,0.10178078,20467.0,20465.0,0.135]
[1673690839963,0.488591,20467.0,20465.0,0.135]
[1673690840206,0.322802,20466.0,20465.0,0.135]
[1673690840449,0.422802,20466.0,20465.0,0.135]
[1673690840954,0.422802,20466.0,20464.0,0.1091343]
[1673690840955,1.211417,20466.0,20464.0,0.1091343]
[1673690841199,0.201004,20465.0,20464.0,0.1091343]
[1673690841452,0.789643,20465.0,20464.0,0.1091343]
[1673690841711,1.089643,20465.0,20464.0,0.1091343]
[1673690842731,1.3063518,20465.0,20464.0,0.1091343]
[1673690842978,1.10501325,20465.0,20464.0,0.1131343]
[1673690843239,1.003643,20465.0,20464.0,0.1131343]
[1673690843483,1.4436733,20465.0,20464.0,0.04497609]
[1673690843725,1.75891573,20465.0,20464.0,0.04497609]
[1673690843976,1.75891573,20465.0,20464.0,0.04097609]
[1673690843977,1.85891573,20465.0,20464.0,0.04097609]
[1673690844228,2.37081073,20465.0,20464.0,0.04097609]
[1673690844476,0.04914998,20463.0,20462.0,0.04827392]
[1673690844744,3.16630993,20463.0,20462.0,0.04827392]
[1673690844991,0.1,20462.0,20459.0,0.00019]
[1673690845240,1.667206,20461.0,20459.0,0.00019]
[1673690845485,0.422802,20460.0,20459.0,0.00019]
[1673690845739,0.422802,20460.0,20458.0,0.01355043]
[1673690846001,0.201004,20459.0,20458.0,0.01355043]
[1673690846504,0.201004,20459.0,20458.0,0.02205043]
[1673690846755,0.201004,20459.0,20458.0,0.21277638]
[1673690847010,0.04934998,20463.0,20460.0,0.14542298]
[1673690847258,0.04934998,20463.0,20461.0,0.0085]
[1673690847493,0.16524113,20463.0,20461.0,0.0085]
[1673690847743,0.322802,20462.0,20461.0,0.0085]
[1673690848003,0.16504113,20463.0,20461.0,0.0085]
[1673690848494,0.18314998,20463.0,20461.0,0.0085]
[1673690848750,0.04914998,20463.0,20461.0,0.0085]
[1673690849012,0.04914998,20463.0,20461.0,0.05447]
[1673690849013,0.015,20462.0,20461.0,0.05447]
[1673690849259,0.015,20462.0,20461.0,0.563532]
[1673690849496,0.015,20462.0,20461.0,0.85425795]
[1673690849761,0.015,20462.0,20461.0,0.963532]
[1673690850010,0.04914998,20463.0,20461.0,0.963532]
[1673690850261,0.04914998,20463.0,20462.0,0.020327]
[1673690850506,0.04914998,20463.0,20462.0,0.617537]
[1673690851770,0.04914998,20463.0,20462.0,1.10826295]
[1673690852012,0.04914998,20463.0,20462.0,0.917537]
[1673690852500,0.04914998,20463.0,20462.0,0.617537]
[1673690852751,0.06414998,20463.0,20462.0,0.617537]
[1673690853000,0.04914998,20463.0,20462.0,0.917537]
[1673690853241,0.06314998,20463.0,20462.0,0.917537]
[1673690853481,0.04914998,20463.0,20462.0,0.917537]
[1673690853750,0.06314998,20463.0,20462.0,0.917537]
[1673690854250,0.014,20463.0,20462.0,1.72916464]
[1673690854500,0.0002,20465.0,20463.0,0.04182715]
[1673690854742,0.0002,20465.0,20464.0,1.663959]
[1673690854987,0.00792295,20471.0,20464.0,1.663959]
[1673690854988,0.00792295,20471.0,20464.0,1.984278]
[1673690855255,0.00792295,20471.0,20465.0,0.49072595]
[1673690855496,0.00792295,20471.0,20466.0,1.78532195]
[1673690855741,0.00792295,20471.0,20467.0,0.49072595]
[1673690855996,0.00792295,20471.0,20468.0,1.494488]
[1673690856267,0.00792295,20471.0,20468.0,1.474186]
[1673690856532,0.00792295,20471.0,20469.0,0.020298]
[1673690856778,0.10620839,20467.0,20466.0,0.607596]
[1673690857039,0.11767865,20466.0,20464.0,1.61720023]
[1673690857284,0.49641995,20471.0,20464.0,0.488659]
[1673690857285,0.01392295,20471.0,20464.0,0.488659]
[1673690857531,0.01392295,20471.0,20465.0,0.66792764]
[1673690857780,0.01392295,20471.0,20469.0,0.109]
[1673690857781,0.02092295,20471.0,20469.0,0.109]
[1673690858048,0.00792295,20471.0,20470.0,0.05447]
[1673690858296,0.12319009,20471.0,20470.0,0.04654705]
[1673690858541,0.00792295,20471.0,20470.0,0.04597]
[1673690858787,0.00792295,20471.0,20470.0,0.5326]
[1673690859546,0.00992295,20471.0,20470.0,0.5586]
[1673690859790,0.00792295,20471.0,20470.0,0.5326]
[1673690860034,0.00992295,20471.0,20470.0,0.5586]
[1673690860280,0.00992295,20471.0,20470.0,0.74435447]
[1673690860588,0.00992295,20471.0,20470.0,0.5671]
[1673690860830,0.00992295,20471.0,20470.0,0.587396]
[1673690861097,0.00992295,20471.0,20470.0,1.07812195]
[1673690861348,0.00992295,20471.0,20470.0,0.987396]
[1673690862089,0.00992295,20471.0,20470.0,0.687396]
[1673690863102,0.00992295,20471.0,20470.0,0.587396]
[1673690863370,0.00992295,20471.0,20470.0,0.687396]
[1673690863613,0.00992295,20471.0,20470.0,1.17812195]
[1673690863864,0.00992295,20471.0,20470.0,0.987396]
[1673690864960,0.00792295,20471.0,20470.0,0.961396]
[1673690865199,0.12749709,20471.0,20470.0,0.641815]
[1673690865453,0.12749709,20471.0,20470.0,0.020296]
[1673690865454,0.12349709,20471.0,20470.0,0.020296]
[1673690865701,0.12749709,20471.0,20470.0,0.133]
[1673690865948,0.12349709,20471.0,20469.0,0.18486848]
[1673690866200,0.12749709,20471.0,20470.0,0.133]
[1673690866439,0.12749709,20471.0,20467.0,0.488577]
[1673690866440,0.12349709,20471.0,20467.0,0.488577]
[1673690866689,0.12749709,20471.0,20470.0,0.133]
[1673690866940,0.12749709,20471.0,20467.0,0.16242734]
[1673690866941,0.12349709,20471.0,20467.0,0.16242734]
[1673690867178,0.322802,20470.0,20467.0,0.16242734]
[1673690867423,0.1,20470.0,20465.0,0.488813]
[1673690867666,0.888521,20470.0,20465.0,0.00019]
[1673690867911,0.1908219,20469.0,20465.0,0.00019]
[1673690868166,0.1,20468.0,20465.0,0.00019]
[1673690868418,0.488569,20468.0,20467.0,0.123]
[1673690868661,0.488569,20468.0,20463.0,0.02782715]
[1673690868662,0.788569,20468.0,20463.0,0.02782715]
[1673690868921,0.788569,20468.0,20465.0,0.123]
[1673690868922,0.46959659,20467.0,20465.0,0.123]